bitfinex/quotes_BTCUSD_20250803
["timestamp","ask_amount","ask_price","bid_price","bid_amount"]
[1754256621733,0.35364485,114740.0,114730.0,0.03685]
[1754256621956,0.35364485,114740.0,114730.0,0.16953]
[1754256623728,0.35364485,114740.0,114730.0,0.03685]
[1754256623943,0.35364485,114740.0,114730.0,0.16953]
[1754256624832,0.35364485,114740.0,114730.0,0.03685]
[1754256625043,0.35364485,114740.0,114730.0,0.16957]
[1754256625888,0.35364485,114740.0,114730.0,0.03685]
[1754256626094,0.35364485,114740.0,114730.0,0.16953]
[1754256627375,0.35977156,114740.0,114730.0,0.16953]
[1754256629274,0.35977156,114740.0,114730.0,0.03685]
[1754256629508,0.35977156,114740.0,114730.0,0.16949]
[1754256629709,0.35977156,114740.0,114730.0,0.03685]
[1754256629960,0.35977156,114740.0,114730.0,0.16953]
[1754256630171,0.35977156,114740.0,114730.0,0.03685]
[1754256630612,0.35977156,114740.0,114730.0,0.16953]
[1754256630832,1.03110955,114740.0,114730.0,0.16953]
[1754256631763,1.04747003,114740.0,114730.0,0.03685]
[1754256631985,1.04747003,114740.0,114730.0,0.16953]
[1754256632454,1.04747003,114740.0,114730.0,0.03685]
[1754256632671,1.04747003,114740.0,114730.0,0.16953]
[1754256633560,1.04747003,114740.0,114730.0,0.03685]
[1754256633778,1.04747003,114740.0,114730.0,0.16953]
[1754256634335,1.04747003,114740.0,114730.0,0.03685]
[1754256634549,1.04747003,114740.0,114730.0,0.16953]
[1754256635317,1.04748043,114740.0,114730.0,0.03685]
[1754256635538,0.37614244,114740.0,114730.0,0.16953]
[1754256635751,1.05566389,114740.0,114730.0,0.16953]
[1754256640256,1.05566585,114740.0,114730.0,0.16953]
[1754256642529,1.04748239,114740.0,114730.0,0.16953]
[1754256645260,0.3761444,114740.0,114730.0,0.16953]
[1754256645415,1.04748239,114740.0,114730.0,0.16953]
[1754256646083,1.04748199,114740.0,114730.0,0.16953]
[1754256651858,1.04749145,114740.0,114730.0,0.16953]
[1754256652487,1.04749145,114740.0,114730.0,0.03685]
[1754256652700,1.04749145,114740.0,114730.0,0.16724]
[1754256656003,1.04749145,114740.0,114730.0,0.16922]
[1754256660523,1.03112151,114740.0,114730.0,0.16922]
[1754256660736,1.04749177,114740.0,114730.0,0.16922]
[1754256662739,0.37615378,114740.0,114730.0,0.16922]
[1754256662959,0.35978352,114740.0,114730.0,0.70799799]
[1754256663211,1.04749195,114740.0,114730.0,0.16922]
[1754256664369,1.04749195,114740.0,114730.0,0.16724]
[1754256664555,1.04749195,114740.0,114730.0,0.03468]
[1754256664767,1.04749195,114740.0,114730.0,0.16724]
[1754256664984,1.04749195,114740.0,114730.0,0.16922]
[1754256665721,1.04749195,114740.0,114730.0,0.03666]
[1754256665933,1.04749195,114740.0,114730.0,0.16922]
[1754256669940,1.05567797,114740.0,114730.0,0.16922]
[1754256670415,1.04749195,114740.0,114730.0,0.16922]
[1754256670643,0.37615396,114740.0,114730.0,0.16922]
[1754256670872,1.04749195,114740.0,114730.0,0.16922]
[1754256671384,1.04749397,114740.0,114730.0,0.16922]
[1754256672885,0.37615598,114740.0,114730.0,0.16922]
[1754256673114,1.04749397,114740.0,114730.0,0.16922]
[1754256681192,5.23925888,114740.0,114730.0,0.00104]
[1754256681411,5.23925888,114740.0,114730.0,0.1336]
[1754256681412,5.26676966,114740.0,114730.0,0.1336]
[1754256681851,5.25312481,114740.0,114730.0,0.1336]
[1754256684660,4.92677033,114740.0,114730.0,0.1336]
[1754256687734,5.93810832,114740.0,114730.0,0.00104]
[1754256687945,5.9244628,114740.0,114730.0,0.1336]
[1754256688166,5.9244628,114740.0,114730.0,0.00104]
[1754256688410,5.9244628,114740.0,114730.0,0.1336]
[1754256688620,5.9244628,114740.0,114730.0,0.00104]
[1754256690799,5.93810933,114740.0,114730.0,0.00104]
[1754256695313,5.96432633,114740.0,114730.0,0.00104]
[1754256696123,5.9506798,114740.0,114730.0,0.00104]
[1754256697401,5.94249389,114740.0,114730.0,0.00104]
[1754256697617,5.95066201,114740.0,114730.0,0.00104]
[1754256697847,5.75154217,114740.0,114730.0,0.00104]
[1754256699430,5.76518869,114740.0,114730.0,0.03141]
[1754256699906,5.76618869,114740.0,114730.0,0.03141]
[1754256700357,5.76618869,114740.0,114730.0,4e-05]
[1754256700580,5.89874869,114740.0,114730.0,4e-05]
[1754256703441,5.89058057,114740.0,114730.0,4e-05]
[1754256703658,5.89874707,114740.0,114730.0,4e-05]
[1754256706576,5.89874771,114740.0,114730.0,4e-05]
[1754256706782,5.98758527,114740.0,114730.0,4e-05]
[1754256707121,5.89874771,114740.0,114730.0,4e-05]
[1754256709731,5.92121401,114740.0,114730.0,4e-05]
[1754256712306,5.94004766,114740.0,114730.0,4e-05]
[1754256714130,5.95749668,114740.0,114730.0,4e-05]
[1754256717758,5.98249668,114740.0,114730.0,4e-05]
[1754256717967,4.523579,114720.0,114710.0,0.03291]
[1754256718183,6.70078641,114720.0,114710.0,0.03291]
[1754256718410,6.72829719,114720.0,114710.0,0.03291]
[1754256718639,6.75452019,114720.0,114710.0,0.03291]
[1754256719728,6.75552019,114720.0,114710.0,0.03291]
[1754256720069,6.78235976,114720.0,114710.0,0.03291]
[1754256721174,6.87119732,114720.0,114710.0,0.03291]
[1754256721677,6.78235976,114720.0,114710.0,0.03291]
[1754256722257,6.79600892,114720.0,114710.0,0.03291]
[1754256723162,6.79600892,114720.0,114710.0,4e-05]
[1754256723808,6.79600892,114720.0,114710.0,0.03291]
[1754256726065,6.80118162,114720.0,114710.0,0.03291]
[1754256726979,6.8439938,114720.0,114710.0,0.03291]
[1754256728534,6.86144282,114720.0,114710.0,0.03291]
[1754256728765,6.88644282,114720.0,114710.0,4e-05]
[1754256729235,6.91144204,114720.0,114710.0,4e-05]
[1754256729446,5.91121478,114710.0,114700.0,0.05291]
[1754256729665,6.0932693,114710.0,114700.0,0.05291]
[1754256730093,6.0932693,114710.0,114700.0,0.05611]
[1754256730749,6.86094861,114710.0,114700.0,0.01130279]
[1754256730966,6.88449117,114710.0,114700.0,0.01130279]
[1754256731150,6.86094861,114710.0,114700.0,0.00256558]
[1754256731572,4.523579,114690.0,114680.0,0.0324]
[1754256731776,6.72833641,114690.0,114680.0,0.03456753]
[1754256732191,6.81717397,114690.0,114680.0,0.03456753]
[1754256733268,6.83082692,114690.0,114680.0,0.03456753]
[1754256733691,6.83182692,114690.0,114680.0,0.03456753]
[1754256733911,6.76921936,114690.0,114680.0,0.03456753]
[1754256735245,6.77121936,114690.0,114680.0,0.03456753]
[1754256737937,6.09988137,114690.0,114680.0,0.03456753]
[1754256738579,6.77121936,114690.0,114680.0,0.03456753]
[1754256738822,6.86005692,114690.0,114680.0,0.03456753]
[1754256739510,6.18871893,114690.0,114680.0,0.03456753]
[1754256739730,6.17505242,114690.0,114680.0,0.03456753]
[1754256739946,6.75755285,114690.0,114680.0,0.03456753]
[1754256741454,6.75751743,114690.0,114680.0,0.03456753]
[1754256742486,6.77117023,114690.0,114680.0,0.03456753]
[1754256743344,6.78995754,114690.0,114680.0,0.03456753]
[1754256743769,6.78996022,114690.0,114680.0,0.03456753]
[1754256743985,6.11862223,114690.0,114680.0,0.03456753]
[1754256744371,6.15857608,114690.0,114680.0,0.03456753]
[1754256744581,6.82991407,114690.0,114680.0,0.03456753]
[1754256746094,6.81626127,114690.0,114680.0,0.03456753]
[1754256746542,6.80809413,114690.0,114680.0,0.03456753]
[1754256746729,6.81625279,114690.0,114680.0,0.03456753]
[1754256749597,6.81625977,114690.0,114680.0,0.03456753]
[1754256750280,6.82991272,114690.0,114680.0,0.03456753]
[1754256755317,6.82993266,114690.0,114680.0,0.03456753]
[1754256756406,6.78997881,114690.0,114680.0,0.03456753]
[1754256762898,6.78997881,114690.0,114680.0,0.03244753]
[1754256763092,6.78999311,114690.0,114680.0,0.03244753]
[1754256763237,6.78999311,114690.0,114680.0,0.03248753]
[1754256763654,7.23369311,114690.0,114680.0,0.03248753]
[1754256764074,7.23369319,114690.0,114680.0,0.03248753]
[1754256765797,6.99437619,114690.0,114680.0,0.03248753]
[1754256766456,6.86177619,114690.0,114680.0,0.03452753]
[1754256766675,6.3230382,114690.0,114680.0,0.03452753]
[1754256767089,6.32311557,114690.0,114680.0,0.03452753]
[1754256767302,6.29560479,114690.0,114680.0,0.03452753]
[1754256767511,6.32311557,114690.0,114680.0,0.03452753]
[1754256767753,6.29560479,114690.0,114680.0,0.03452753]
[1754256770084,4.95292881,114690.0,114680.0,0.03452753]
[1754256770329,6.29560479,114690.0,114680.0,0.03452753]
[1754256771002,6.29560502,114690.0,114680.0,0.03452753]
[1754256771685,6.98439203,114690.0,114680.0,8.753e-05]
[1754256771908,7.0827716,114690.0,114680.0,8.753e-05]
[1754256772356,7.00939203,114690.0,114680.0,0.02918753]
[1754256772602,6.98439203,114690.0,114680.0,0.03219753]
[1754256775487,6.54069203,114690.0,114680.0,0.03219753]
[1754256776606,5.86935404,114690.0,114680.0,0.03423753]
[1754256777242,5.73675404,114690.0,114680.0,0.03423753]
[1754256777449,5.86935404,114690.0,114680.0,0.03423753]
[1754256777898,5.85190502,114690.0,114680.0,0.03423753]
[1754256778714,5.87941981,114690.0,114680.0,0.03423753]
[1754256782832,5.86576686,114690.0,114680.0,0.03423753]
[1754256785694,5.87941969,114690.0,114680.0,0.03423753]
[1754256787045,5.8519049,114690.0,114680.0,0.03423753]
[1754256787309,5.87941969,114690.0,114680.0,0.03423753]
[1754256789561,5.85192043,114690.0,114680.0,0.03423753]
[1754256789753,4.16924445,114690.0,114680.0,0.03423753]
[1754256789979,4.7819123,114690.0,114680.0,0.03423753]
[1754256790206,5.1219123,114690.0,114680.0,0.03423753]
[1754256790443,5.79325029,114690.0,114680.0,0.03423753]
[1754256790954,5.04598768,114690.0,114680.0,0.03423753]
[1754256791215,4.57338768,114690.0,114680.0,0.03423753]
[1754256791467,4.70598768,114690.0,114680.0,0.03423753]
[1754256791681,5.04598768,114690.0,114680.0,0.03423753]
[1754256792873,5.05963927,114690.0,114680.0,0.03423753]
[1754256793334,4.92703927,114690.0,114680.0,0.03423753]
[1754256793585,4.91884938,114690.0,114680.0,0.03423753]
[1754256793836,4.91784938,114690.0,114680.0,0.03423753]
[1754256794050,4.91884938,114690.0,114680.0,0.03423753]
[1754256796156,4.94636417,114690.0,114680.0,0.03423753]
[1754256796930,4.91884938,114690.0,114680.0,0.03423753]
[1754256797175,4.94636417,114690.0,114680.0,0.03423753]
[1754256798194,4.94634853,114690.0,114680.0,0.03423753]
[1754256799490,4.93269694,114690.0,114680.0,0.03423753]
[1754256802541,4.9463486,114690.0,114680.0,0.03423753]
[1754256804305,4.94630426,114690.0,114680.0,0.03423753]
[1754256805204,5.07886426,114690.0,114680.0,0.03423753]
[1754256809187,5.0652126,114690.0,114680.0,0.03423753]
[1754256810132,5.06521292,114690.0,114680.0,0.03423753]
[1754256810767,5.81211475,114690.0,114680.0,0.03423753]
[1754256811091,5.67955475,114690.0,114680.0,0.03423753]
[1754256811904,5.69320658,114690.0,114680.0,0.03423753]
[1754256812318,5.70137845,114690.0,114680.0,0.03423753]
[1754256812959,5.7013869,114690.0,114680.0,0.03423753]
[1754256813315,5.8339469,114690.0,114680.0,0.03423753]
[1754256814163,4.4896317,114690.0,114680.0,0.03423753]
[1754256814369,5.8339469,114690.0,114680.0,0.03423753]
[1754256815163,5.7013869,114690.0,114680.0,0.03423753]
[1754256815389,5.8013869,114690.0,114680.0,0.03423753]
[1754256822765,5.78773507,114690.0,114680.0,0.03423753]
[1754256823199,5.78778778,114690.0,114680.0,0.03423753]
[1754256823624,5.78778793,114690.0,114680.0,0.03423753]
[1754256825608,5.80143972,114690.0,114680.0,0.03423753]
[1754256827733,5.80145926,114690.0,114680.0,0.03423753]
[1754256831723,5.77394447,114690.0,114680.0,0.03423753]
[1754256833506,5.75756098,114690.0,114680.0,0.03423753]
[1754256833706,5.7739404,114690.0,114680.0,0.03423753]
[1754256839213,5.7739404,114690.0,114680.0,0.00248609]
[1754256839952,5.7759204,114690.0,114680.0,0.00248609]
[1754256840458,5.77591936,114690.0,114680.0,0.00248609]
[1754256841366,5.77591936,114690.0,114680.0,0.03167609]
[1754256850382,5.77591839,114690.0,114680.0,0.03167609]
[1754256856246,5.77591731,114690.0,114680.0,0.03167609]
[1754256858719,4.43160211,114690.0,114680.0,0.03167609]
[1754256858951,5.77591731,114690.0,114680.0,0.03167609]
[1754256859591,5.76226552,114690.0,114680.0,0.03167609]
[1754256860585,4.41795032,114690.0,114680.0,0.03167609]
[1754256860933,5.76226552,114690.0,114680.0,0.03167609]
[1754256862362,5.77591723,114690.0,114680.0,0.03167609]
[1754256866357,5.76226552,114690.0,114680.0,0.03167609]
[1754256866847,3.944262,114680.0,114670.0,0.0339]
[1754256867029,4.64089925,114680.0,114670.0,0.0339]
[1754256867778,4.64089925,114680.0,114670.0,0.036]
[1754256868009,4.66841497,114680.0,114670.0,0.036]
[1754256868548,4.45343897,114680.0,114670.0,0.036]
[1754256868762,4.45343897,114680.0,114670.0,0.037]
[1754256869382,4.46709128,114680.0,114670.0,0.037]
[1754256870618,4.43957649,114680.0,114670.0,0.037]
[1754256870831,4.46709128,114680.0,114670.0,0.037]
[1754256871029,4.4670902,114680.0,114670.0,0.037]
[1754256872630,3.76545781,114680.0,114670.0,0.037]
[1754256872856,0.35979388,114680.0,114670.0,0.037]
[1754256873298,0.35365231,114680.0,114670.0,0.037]
[1754256874469,1.02580991,114680.0,114670.0,0.037]
[1754256877516,0.35365231,114680.0,114670.0,0.037]
[1754256877724,1.02580991,114680.0,114670.0,0.037]
[1754256881929,1.02580991,114680.0,114670.0,0.03648465]
[1754256882522,1.0121576,114680.0,114670.0,0.03648465]
[1754256891603,0.34,114680.0,114670.0,0.03648465]
[1754256891847,1.0121576,114680.0,114670.0,0.03648465]
[1754256898162,1.0141376,114680.0,114670.0,0.03648465]
[1754256902804,0.34198,114680.0,114670.0,0.03648465]
[1754256903017,1.0141376,114680.0,114670.0,0.03648465]
[1754256904602,0.34198,114680.0,114670.0,0.03393]
[1754256904829,1.0141376,114680.0,114670.0,0.03393]
[1754256905247,1.0141376,114680.0,114670.0,0.03712]
[1754256908742,0.34198,114680.0,114670.0,0.03712]
[1754256908923,1.0141376,114680.0,114670.0,0.03712]
[1754256909935,1.0091376,114680.0,114670.0,0.03712]
[1754256918259,1.0091376,114680.0,114670.0,0.03183]
[1754256938969,0.6741376,114680.0,114670.0,0.03183]
[1754256939197,0.00198,114680.0,114670.0,0.03503]
[1754256939412,0.6741376,114680.0,114670.0,0.03712]
[1754256944409,0.00198,114680.0,114670.0,0.03712]
[1754256944606,0.6741376,114680.0,114670.0,0.03712]
[1754256948777,1.0141376,114680.0,114670.0,0.03712]
[1754256949985,0.34198,114680.0,114670.0,0.03712]
[1754256950229,1.0141376,114680.0,114670.0,0.03712]
[1754256965117,0.35231,114680.0,114670.0,0.13332]
[1754256965347,1.03061035,114680.0,114670.0,0.001]
[1754256965572,1.03061035,114680.0,114670.0,0.13364]
[1754256966218,1.06061443,114680.0,114670.0,0.13364]
[1754256966426,1.06061443,114680.0,114670.0,0.001]
[1754256966642,1.06061443,114680.0,114670.0,0.13364]
[1754256966851,4.78990043,114680.0,114670.0,0.13364]
[1754256970297,4.80355245,114680.0,114670.0,0.13364]
[1754256970492,4.80355245,114680.0,114670.0,0.1336]
[1754256970701,4.81991825,114680.0,114670.0,0.1336]
[1754256971806,4.84614725,114680.0,114670.0,0.1336]
[1754256972653,4.84614725,114680.0,114670.0,0.001]
[1754256975348,4.81614317,114680.0,114670.0,0.001]
[1754256975552,4.84614725,114680.0,114670.0,0.001]
[1754256976144,5.51830485,114680.0,114670.0,0.001]
[1754256978651,5.4957963,114680.0,114670.0,0.001]
[1754256979058,5.51827576,114680.0,114670.0,0.001]
[1754256980233,5.52644937,114680.0,114670.0,0.001]
[1754256981963,5.51827576,114680.0,114670.0,0.001]
[1754256983280,5.52644803,114680.0,114670.0,0.001]
[1754256983723,4.18213283,114680.0,114670.0,0.001]
[1754256983950,5.52644803,114680.0,114670.0,0.001]
[1754256987828,4.18213283,114680.0,114670.0,0.001]
[1754256988027,5.51904803,114680.0,114670.0,0.001]
[1754256993227,5.51904803,114680.0,114670.0,0.02959]
[1754256994721,5.51611803,114680.0,114670.0,0.02959]
[1754256996079,5.17413803,114680.0,114670.0,0.02959]
[1754256996395,5.17415861,114680.0,114670.0,0.02959]
[1754256997912,5.51415861,114680.0,114670.0,0.02959]
[1754257002242,5.51417704,114680.0,114670.0,0.02959]
[1754257002860,5.50052502,114680.0,114670.0,0.02959]
[1754257003467,5.50052502,114680.0,114670.0,0.001]
[1754257003669,5.50756502,114680.0,114670.0,0.001]
[1754257003898,5.59640258,114680.0,114670.0,0.001]
[1754257004181,5.58936258,114680.0,114670.0,0.001]
[1754257004731,5.58323369,114680.0,114670.0,0.001]
[1754257004931,5.58937429,114680.0,114670.0,0.001]
[1754257005319,5.63289673,114680.0,114670.0,0.001]
[1754257005558,5.65609019,114680.0,114670.0,0.001]
[1754257006373,5.65513019,114680.0,114670.0,0.001]
[1754257007113,5.65609019,114680.0,114670.0,0.001]
[1754257007921,0.34,114670.0,114660.0,4e-05]
[1754257008131,5.47584834,114670.0,114660.0,4e-05]
[1754257008348,5.47584834,114670.0,114660.0,0.02833]
[1754257008561,5.63443934,114670.0,114660.0,0.02833]
[1754257009426,5.63443934,114670.0,114660.0,0.02933]
[1754257010938,5.64809374,114670.0,114660.0,0.02933]
[1754257013681,5.64808982,114670.0,114660.0,0.02933]
[1754257013822,5.65608982,114670.0,114660.0,0.00104]
[1754257014423,5.65512982,114670.0,114660.0,0.00104]
[1754257014606,5.64808982,114670.0,114660.0,0.00104]
[1754257019972,5.73692738,114670.0,114660.0,0.00104]
[1754257020376,6.32728742,114670.0,114660.0,0.00104]
[1754257020580,5.64808982,114670.0,114660.0,0.00104]
[1754257020801,6.32024742,114670.0,114660.0,0.00104]
[1754257021639,6.32024108,114670.0,114660.0,0.00104]
[1754257023414,5.64808348,114670.0,114660.0,0.00104]
[1754257023824,6.32024108,114670.0,114660.0,0.02933]
[1754257024443,6.35039961,114670.0,114660.0,0.02933]
[1754257024641,6.35039393,114670.0,114660.0,0.02933]
[1754257024773,6.35039393,114670.0,114660.0,0.00104]
[1754257024971,6.3202354,114670.0,114660.0,0.00104]
[1754257025322,6.3202354,114670.0,114660.0,0.02933]
[1754257027463,6.30386043,114670.0,114660.0,0.02933]
[1754257027674,6.32021564,114670.0,114660.0,0.02933]
[1754257031543,6.32021564,114670.0,114660.0,0.00104]
[1754257032259,6.32021564,114670.0,114660.0,0.03046]
[1754257033361,6.3202211,114670.0,114660.0,0.03046]
[1754257035151,6.3202211,114670.0,114660.0,0.03353]
[1754257035367,6.3202211,114670.0,114660.0,0.03564]
[1754257035828,5.6480635,114670.0,114660.0,0.03464]
[1754257036075,5.6490635,114670.0,114660.0,0.03464]
[1754257037132,5.61905942,114670.0,114660.0,0.03464]
[1754257038060,5.61905942,114670.0,114660.0,0.03253]
[1754257040568,5.63792136,114670.0,114660.0,0.03253]
[1754257041487,6.34008304,114670.0,114660.0,0.03253]
[1754257042122,6.34010277,114670.0,114660.0,0.03253]
[1754257042559,6.31009869,114670.0,114660.0,0.03253]
[1754257042766,6.34010277,114670.0,114660.0,0.03253]
[1754257045018,6.31009869,114670.0,114660.0,0.03253]
[1754257045240,5.66794517,114670.0,114660.0,0.03253]
[1754257046174,5.65429077,114670.0,114660.0,0.03253]
[1754257046758,6.32644837,114670.0,114660.0,0.03253]
[1754257046979,6.29644429,114670.0,114660.0,0.03253]
[1754257047183,6.32644837,114670.0,114660.0,0.03253]
[1754257049020,5.98644837,114670.0,114660.0,0.03253]
[1754257049201,5.96758643,114670.0,114660.0,0.02946]
[1754257050749,5.9864584,114670.0,114660.0,4e-05]
[1754257051141,6.3264584,114670.0,114660.0,4e-05]
[1754257051369,6.3324184,114670.0,114660.0,4e-05]
[1754257051576,6.4324184,114670.0,114660.0,4e-05]
[1754257052233,6.4264584,114670.0,114660.0,4e-05]
[1754257052435,6.51178838,114670.0,114660.0,4e-05]
[1754257052845,6.4264584,114670.0,114660.0,4e-05]
[1754257053566,6.44011358,114670.0,114660.0,4e-05]
[1754257054412,6.44011358,114670.0,114660.0,0.02946]
[1754257055311,6.44011358,114670.0,114660.0,4e-05]
[1754257056045,6.44011358,114670.0,114660.0,0.02946]
[1754257056880,6.4264584,114670.0,114660.0,0.02946]
[1754257058134,6.4264584,114670.0,114660.0,4e-05]
[1754257058372,6.4264584,114670.0,114660.0,0.02946]
[1754257059633,6.42646606,114670.0,114660.0,0.02946]
[1754257059853,6.44012097,114670.0,114660.0,0.02946]
[1754257062525,6.44012959,114670.0,114660.0,0.02946]
[1754257065077,6.4401401,114670.0,114660.0,0.02946]
[1754257065651,6.44014028,114670.0,114660.0,0.02946]
[1754257066834,6.44014028,114670.0,114660.0,0.03266]
[1754257068136,6.44014133,114670.0,114660.0,0.03266]
[1754257068479,6.44013944,114670.0,114660.0,0.03266]
[1754257071250,5.75432693,114670.0,114660.0,0.03266]
[1754257074096,5.76798214,114670.0,114660.0,0.03266]
[1754257076863,6.45758876,114670.0,114660.0,4e-05]
[1754257077060,6.54642632,114670.0,114660.0,4e-05]
[1754257077740,6.45758876,114670.0,114660.0,4e-05]
[1754257078408,6.45758876,114670.0,114660.0,0.03016]
[1754257080337,6.45758876,114670.0,114660.0,4e-05]
[1754257080922,6.45758876,114670.0,114660.0,0.03016]
[1754257081140,6.44393355,114670.0,114660.0,0.03016]
[1754257083308,6.53949111,114670.0,114660.0,4e-05]
[1754257083887,6.54642679,114670.0,114660.0,4e-05]
[1754257084293,6.54642679,114670.0,114660.0,0.03016]
[1754257084907,5.78543163,114670.0,114660.0,0.03016]
[1754257085450,6.45758923,114670.0,114660.0,0.03016]
[1754257085885,6.45758923,114670.0,114660.0,4e-05]
[1754257086377,4.44111643,114670.0,114660.0,0.03016]
[1754257086627,6.45758923,114670.0,114660.0,0.03016]
[1754257086876,5.78543163,114670.0,114660.0,0.03016]
[1754257087553,5.84426682,114670.0,114660.0,4e-05]
[1754257087790,6.51642442,114670.0,114660.0,4e-05]
[1754257087980,6.51641889,114670.0,114660.0,4e-05]
[1754257088211,5.7854261,114670.0,114660.0,0.03016]
[1754257088420,5.6530661,114670.0,114660.0,0.03016]
[1754257088670,5.7854261,114670.0,114660.0,0.03016]
[1754257089858,5.7854261,114670.0,114660.0,4e-05]
[1754257090067,5.7921461,114670.0,114660.0,4e-05]
[1754257090269,5.7854261,114670.0,114660.0,4e-05]
[1754257090845,5.7854261,114670.0,114660.0,0.03016]
[1754257091063,5.7844261,114670.0,114660.0,0.03016]
[1754257091246,5.7854261,114670.0,114660.0,0.03016]
[1754257091451,5.7864261,114670.0,114660.0,0.03016]
[1754257093607,5.77004872,114670.0,114660.0,0.03016]
[1754257093808,5.78642744,114670.0,114660.0,0.03016]
[1754257098187,5.78642771,114670.0,114660.0,0.03016]
[1754257098875,5.77277123,114670.0,114660.0,0.03016]
[1754257101679,5.78642679,114670.0,114660.0,0.03016]
[1754257105164,5.7864331,114670.0,114660.0,0.03016]
[1754257106318,5.77277754,114670.0,114660.0,0.03016]
[1754257109120,5.78643307,114670.0,114660.0,0.03339]
[1754257114242,5.78643545,114670.0,114660.0,0.03339]
[1754257117181,5.78643788,114670.0,114660.0,0.03339]
[1754257120149,5.78643858,114670.0,114660.0,0.03339]
[1754257125490,5.7564345,114670.0,114660.0,0.03339]
[1754257125697,5.78643858,114670.0,114660.0,0.03339]
[1754257126125,5.78643729,114670.0,114660.0,0.03339]
[1754257128845,5.77278176,114670.0,114660.0,0.03339]
[1754257131670,5.78643728,114670.0,114660.0,0.03339]
[1754257132061,5.78643718,114670.0,114660.0,0.03339]
[1754257133071,5.87527474,114670.0,114660.0,0.03339]
[1754257133296,6.57271088,114670.0,114660.0,4e-05]
[1754257133522,6.59771088,114670.0,114660.0,4e-05]
[1754257133750,6.60216088,114670.0,114660.0,4e-05]
[1754257133965,6.57688234,114670.0,114660.0,4e-05]
[1754257134892,6.55188234,114670.0,114660.0,4e-05]
[1754257135961,6.53377682,114670.0,114660.0,4e-05]
[1754257136395,4.1167391,114660.0,114650.0,0.03047]
[1754257136612,6.31560826,114660.0,114650.0,0.0325]
[1754257137472,6.34184726,114660.0,114650.0,0.0325]
[1754257137921,5.66968744,114660.0,114650.0,0.0325]
[1754257138102,5.75535497,114660.0,114650.0,0.0325]
[1754257138616,5.66968744,114660.0,114650.0,0.0325]
[1754257139023,5.68334371,114660.0,114650.0,0.0325]
[1754257140207,5.71175603,114660.0,114650.0,0.0325]
[1754257140407,5.71175603,114660.0,114640.0,4e-05]
[1754257140650,5.56381022,114650.0,114640.0,0.00306]
[1754257140882,5.68336968,114650.0,114640.0,0.00509]
[1754257141093,5.71337376,114650.0,114640.0,0.00509]
[1754257141303,5.06745716,114650.0,114640.0,0.03254]
[1754257141755,5.07631781,114650.0,114640.0,0.03254]
[1754257141969,5.07631781,114650.0,114640.0,0.03301561]
[1754257143296,5.07631781,114650.0,114640.0,0.03401561]
[1754257143449,5.74847541,114650.0,114640.0,0.03401561]
[1754257143658,5.74847541,114650.0,114640.0,0.03601561]
[1754257144681,5.07631781,114650.0,114640.0,0.03601561]
[1754257144869,4.98748025,114650.0,114640.0,0.03601561]
[1754257145282,5.43118025,114650.0,114640.0,0.03601561]
[1754257147625,5.40117617,114650.0,114640.0,0.03601561]
[1754257147868,4.71156955,114650.0,114640.0,0.03601561]
[1754257148052,5.25096715,114650.0,114640.0,0.03601561]
[1754257148459,5.25096128,114650.0,114640.0,0.03601561]
[1754257149581,5.25094553,114650.0,114640.0,0.03601561]
[1754257151417,5.04891218,114650.0,114640.0,0.03601561]
[1754257152456,5.06256848,114650.0,114640.0,0.03601561]
[1754257154067,1.53531048,114650.0,114640.0,0.03601561]
[1754257154282,1.09161048,114650.0,114640.0,0.03601561]
[1754257157250,1.09159531,114650.0,114640.0,0.03601561]
[1754257158348,1.0752348,114650.0,114640.0,0.03601561]
[1754257158907,1.1752348,114650.0,114640.0,0.03601561]
[1754257159510,0.5030772,114650.0,114640.0,0.03601561]
[1754257159735,1.1752348,114650.0,114640.0,0.03601561]
[1754257160319,1.16705455,114650.0,114640.0,0.03601561]
[1754257161107,1.15339825,114650.0,114640.0,0.03601561]
[1754257163334,1.15339825,114650.0,114640.0,0.16857561]
[1754257163893,1.16705385,114650.0,114640.0,0.16857561]
[1754257164192,0.49489625,114650.0,114640.0,0.16857561]
[1754257164491,0.48875725,114650.0,114640.0,0.16857561]
[1754257164950,0.48875725,114650.0,114640.0,0.25720845]
[1754257165586,1.16091485,114650.0,114640.0,0.25720845]
[1754257166408,1.16091485,114650.0,114640.0,0.16857561]
[1754257166755,1.19091893,114650.0,114640.0,0.16857561]
[1754257169294,1.16091485,114650.0,114640.0,0.16857561]
[1754257179689,1.14725925,114650.0,114640.0,0.16857561]
[1754257180368,1.15339385,114650.0,114640.0,0.16857561]
[1754257182695,1.16704915,114650.0,114640.0,0.16857561]
[1754257185681,1.16705453,114650.0,114640.0,0.16857561]
[1754257189685,1.15339923,114650.0,114640.0,0.16857561]
[1754257191338,1.16158883,114650.0,114640.0,0.16857561]
[1754257192419,1.15339923,114650.0,114640.0,0.16857561]
[1754257192600,1.17524722,114650.0,114640.0,0.16857561]
[1754257196209,1.16159196,114650.0,114640.0,0.16857561]
[1754257198390,1.15340182,114650.0,114640.0,0.16857561]
[1754257198577,1.19160045,114650.0,114640.0,0.16857561]
[1754257199236,1.16159637,114650.0,114640.0,0.16857561]
[1754257199824,1.17525167,114650.0,114640.0,0.16857561]
[1754257200249,0.50309407,114650.0,114640.0,0.16857561]
[1754257200454,0.53463815,114650.0,114640.0,0.16833561]
[1754257200634,4.73405375,114650.0,114640.0,0.13583561]
[1754257200844,4.73875375,114650.0,114640.0,0.13583561]
[1754257201044,4.7541792,114650.0,114640.0,0.13583561]
[1754257201290,4.7551392,114650.0,114640.0,0.13583561]
[1754257201493,4.0829816,114650.0,114640.0,0.13583561]
[1754257201698,4.7551392,114650.0,114640.0,0.13583561]
[1754257203343,4.80513773,114650.0,114640.0,0.13583561]
[1754257204794,4.77513365,114650.0,114640.0,0.13583561]
[1754257205191,4.80513773,114650.0,114640.0,0.13583561]
[1754257205592,4.80417773,114650.0,114640.0,0.13583561]
[1754257205795,4.80043773,114650.0,114640.0,0.13583561]
[1754257206424,4.78678243,114650.0,114640.0,0.13583561]
[1754257209326,4.78676482,114650.0,114640.0,0.13583561]
[1754257209556,4.80042071,114650.0,114640.0,0.16286561]
[1754257210199,4.77041663,114650.0,114640.0,0.16286561]
[1754257210637,4.80042071,114650.0,114640.0,0.16286561]
[1754257212248,4.77041663,114650.0,114640.0,0.16286561]
[1754257213098,4.80042071,114650.0,114640.0,0.16286561]
[1754257215145,4.80041901,114650.0,114640.0,0.16286561]
[1754257217033,4.77041493,114650.0,114640.0,0.16286561]
[1754257217867,4.80041901,114650.0,114640.0,0.16286561]